bitfinex/quotes_SOLUSD_20260311
["timestamp","ask_amount","ask_price","bid_price","bid_amount"]
[1773244533790,15.18835477,85.476,85.447,3.41006737]
[1773244533990,3.48904602,85.476,85.447,3.41006737]
[1773244534206,22.85253596,85.48,85.447,3.41006737]
[1773244534381,22.85253596,85.48,85.451,3.41006737]
[1773244534382,3.48904602,85.48,85.451,3.41006737]
[1773244534581,22.85262569,85.48,85.451,3.41006737]
[1773244535001,3.48904602,85.479,85.451,3.41006737]
[1773244535392,3.48904602,85.479,85.442,3.41006737]
[1773244535593,3.48904602,85.469,85.431,3.41006737]
[1773244535800,3.48904602,85.467,85.433,3.41006737]
[1773244536499,7.66480101,85.46,85.433,3.41006737]
[1773244536900,3.48904602,85.459,85.433,3.41006737]
[1773244537295,15.1893315,85.468,85.433,3.41006737]
[1773244537610,3.48904602,85.467,85.433,3.41006737]
[1773244537909,3.48904602,85.465,85.435,3.41006737]
[1773244538095,3.48904602,85.479,85.441,3.41006737]
[1773244539185,7.66480101,85.46,85.434,11.70494182]
[1773244539386,7.66480101,85.46,85.434,15.11500919]
[1773244539910,3.48904602,85.462,85.435,3.41006737]
[1773244540408,11.69649487,85.496,85.451,3.2801831]
[1773244540714,14.99784828,85.497,85.471,3.2801831]
[1773244540891,7.66480101,85.49,85.471,3.2801831]
[1773244541289,3.30141043,85.496,85.471,3.2801831]
[1773244542004,7.66480101,85.49,85.463,3.2801831]
[1773244542204,7.66480101,85.48,85.463,3.2801831]
[1773244542415,3.30141043,85.479,85.452,3.2801831]
[1773244542723,3.30141043,85.49,85.452,3.2801831]
[1773244543002,7.66480101,85.49,85.461,3.2801831]
[1773244543308,3.30141043,85.489,85.461,3.2801831]
[1773244543607,3.30141043,85.499,85.461,3.2801831]
[1773244543821,7.66480101,85.49,85.461,3.2801831]
[1773244544116,14.99882179,85.489,85.462,14.98129002]
[1773244544707,3.30141043,85.488,85.462,3.2801831]
[1773244546623,3.30141043,85.486,85.455,3.2801831]
[1773244548404,7.66480101,85.49,85.455,3.2801831]
[1773244548713,11.69330791,85.519,85.481,3.2801831]
[1773244549024,3.30141043,85.518,85.49,3.2801831]
[1773244549401,3.14,85.531,85.501,3.2801831]
[1773244549802,7.66480101,85.53,85.501,3.2801831]
[1773244549998,7.66480101,85.52,85.48,7.66480101]
[1773244550211,3.49473714,85.519,85.491,3.31482169]
[1773244550413,3.49473714,85.527,85.491,3.31482169]
[1773244550624,15.1859159,85.535,85.501,3.31482169]
[1773244550913,7.66480101,85.53,85.503,3.31482169]
[1773244551925,11.15953815,85.53,85.503,3.31482169]
[1773244552494,3.49473714,85.509,85.477,3.31482169]
[1773244552911,3.49473714,85.509,85.479,3.31482169]
[1773244553118,11.69481218,85.508,85.479,3.31482169]
[1773244553297,15.18954932,85.508,85.479,3.31482169]
[1773244553618,3.49473714,85.519,85.491,3.31482169]
[1773244554991,3.06423295,85.52,85.491,3.31482169]
[1773244555199,15.18706697,85.527,85.493,3.31482169]
[1773244555398,3.06423295,85.52,85.493,3.31482169]
[1773244555808,3.49473714,85.526,85.493,3.31482169]
[1773244556010,3.06423295,85.52,85.493,3.31482169]
[1773244557494,3.06423295,85.52,85.495,3.31482169]
[1773244557495,18.25219846,85.52,85.495,3.31482169]
[1773244557698,18.25221992,85.52,85.495,3.31482169]
[1773244558120,14.75748278,85.52,85.495,3.31482169]
[1773244558317,3.49473714,85.519,85.49,3.06425441]
[1773244558628,3.49473714,85.519,85.487,3.31482169]
[1773244559901,15.18818179,85.518,85.491,3.31482169]
[1773244560397,3.06425441,85.5,85.475,3.31482169]
[1773244560602,3.49473714,85.499,85.469,11.70014859]
[1773244560817,3.49473714,85.499,85.47,3.31482169]
[1773244561707,3.06425441,85.51,85.472,3.31482169]
[1773244561906,3.06425441,85.51,85.47,3.06425441]
[1773244561907,14.7589219,85.51,85.475,3.31482169]
[1773244562318,3.49473714,85.509,85.475,3.31482169]
[1773244562526,3.49473714,85.499,85.474,11.69946416]
[1773244562830,3.49473714,85.499,85.47,11.69991968]
[1773244563018,3.49473714,85.489,85.461,3.31482169]
[1773244563209,3.49473714,85.489,85.461,11.70124384]
[1773244563525,3.06425441,85.5,85.462,3.31482169]
[1773244563831,3.49473714,85.505,85.473,3.31482169]
[1773244564131,3.06425441,85.5,85.473,3.31482169]
[1773244564510,3.06425441,85.51,85.48,3.06425441]
[1773244564817,11.6921156,85.528,85.491,3.31482169]
[1773244565124,11.6921156,85.528,85.492,3.31482169]
[1773244565125,3.49473714,85.527,85.492,3.31482169]
[1773244565308,3.49473714,85.527,85.494,3.31482169]
[1773244565831,3.49473714,85.525,85.496,3.31482169]
[1773244566411,11.15411498,85.52,85.496,3.31482169]
[1773244567308,11.69235086,85.526,85.496,3.31482169]
[1773244567309,3.49473714,85.525,85.496,3.31482169]
[1773244567768,7.65937784,85.52,85.496,3.31482169]
[1773244567911,7.65937784,85.52,85.497,11.69631682]
[1773244568604,11.69330791,85.519,85.497,11.69631682]
[1773244570426,15.18804505,85.519,85.497,11.69631682]
[1773244571222,3.49473714,85.518,85.488,3.31482169]
[1773244571433,3.49473714,85.518,85.49,3.31482169]
[1773244572306,3.49473714,85.499,85.469,3.31482169]
[1773244573308,3.49473714,85.479,85.453,3.31482169]
[1773244573518,3.49473714,85.479,85.442,3.31482169]
[1773244573920,10.81937784,85.49,85.451,3.31482169]
[1773244574124,7.65937784,85.49,85.453,3.31482169]
[1773244574326,19.3567357,85.49,85.456,3.31482169]
[1773244574715,7.65937784,85.5,85.461,3.31482169]
[1773244574926,7.65937784,85.5,85.463,3.31482169]
[1773244575126,7.65937784,85.5,85.465,3.31482169]
[1773244576026,3.49473714,85.489,85.455,3.31482169]
[1773244576324,4.38157791,85.507,85.457,3.31482169]
[1773244576542,3.49473714,85.507,85.471,3.31482169]
[1773244576931,7.65937784,85.5,85.471,3.31482169]
[1773244577234,3.49473714,85.489,85.462,3.31482169]
[1773244577735,7.65937784,85.5,85.464,3.31482169]
[1773244578413,11.69604322,85.499,85.466,3.31482169]
[1773244579014,3.49473714,85.498,85.466,3.31482169]
[1773244579941,7.65937784,85.48,85.459,3.3281486]
[1773244580120,3.45430007,85.489,85.459,3.3281486]
[1773244580441,11.69754819,85.488,85.461,3.3281486]
[1773244580939,3.16,85.508,85.471,3.3281486]
[1773244581238,7.65937784,85.54,85.471,3.3281486]
[1773244581239,3.45430007,85.509,85.471,3.3281486]
[1773244581612,3.45430007,85.509,85.473,3.3281486]
[1773244581812,3.45430007,85.509,85.475,3.3281486]
[1773244582038,7.65937784,85.52,85.481,3.3281486]
[1773244582246,3.45430007,85.524,85.491,3.3281486]
[1773244582531,11.69221415,85.527,85.493,3.3281486]
[1773244583114,3.45430007,85.53,85.501,3.3281486]
[1773244583423,3.45430007,85.529,85.501,3.3281486]
[1773244584724,3.45430007,85.527,85.502,11.69563285]
[1773244585119,11.69149418,85.533,85.503,3.3281486]
[1773244586030,7.65937784,85.53,85.503,3.3281486]
[1773244586236,11.69149418,85.533,85.503,3.3281486]
[1773244586438,11.69112059,85.535,85.503,3.3281486]
[1773244586825,7.65937784,85.53,85.505,3.3281486]
[1773244587127,3.45430007,85.529,85.505,3.3281486]
[1773244587332,3.45430007,85.535,85.505,3.3281486]
[1773244587532,11.69057389,85.539,85.505,3.3281486]
[1773244588235,3.45430007,85.538,85.505,3.3281486]
[1773244589033,3.45430007,85.529,85.5,3.3281486]
[1773244589228,3.45430007,85.529,85.49,7.65937784]
[1773244589229,3.45430007,85.529,85.494,3.3281486]
[1773244590324,7.65937784,85.52,85.485,3.3281486]
[1773244590527,7.65937784,85.52,85.491,3.3281486]
[1773244590828,40.91796531,85.537,85.491,3.3281486]
[1773244590829,7.65937784,85.53,85.491,3.3281486]
[1773244591041,11.69194074,85.529,85.493,3.3281486]
[1773244591346,3.45430007,85.528,85.493,3.3281486]
[1773244592540,7.65937784,85.52,85.493,3.3281486]
[1773244592926,3.45430007,85.518,85.493,3.3281486]
[1773244593640,3.45430007,85.518,85.487,11.69766301]
[1773244594022,3.45430007,85.518,85.488,3.3281486]
[1773244594627,11.69330791,85.519,85.462,3.3281486]
[1773244594628,3.45430007,85.499,85.462,3.3281486]
[1773244594844,3.45430007,85.516,85.481,3.3281486]
[1773244595150,11.69385487,85.515,85.483,3.3281486]
[1773244595344,11.69385487,85.515,85.482,11.69836924]
[1773244595345,3.45430007,85.516,85.485,3.3281486]
[1773244595546,3.06452237,85.52,85.485,3.3281486]
[1773244596135,11.69330791,85.519,85.491,3.3281486]
[1773244597235,3.45430007,85.523,85.493,3.3281486]
[1773244597442,3.45430007,85.537,85.501,3.3281486]
[1773244597642,15.14520389,85.537,85.502,3.3281486]
[1773244598239,3.06452237,85.52,85.496,3.3281486]
[1773244598542,3.45430007,85.529,85.496,3.3281486]
[1773244599235,3.45430007,85.529,85.502,3.3281486]
[1773244599440,3.45430007,85.527,85.501,11.69576964]
[1773244599642,3.45430007,85.527,85.502,3.3281486]
[1773244601350,11.69235086,85.526,85.503,11.69549606]
[1773244601656,11.69235086,85.526,85.504,3.22580437]
[1773244602658,11.69235086,85.526,85.49,3.06452237]
[1773244602659,3.50124399,85.509,85.48,3.22580437]
[1773244602863,3.50124399,85.516,85.481,3.22580437]
[1773244603661,3.50124399,85.516,85.48,3.06452237]
[1773244603662,11.69385487,85.515,85.483,3.22580437]
[1773244604355,15.19509886,85.515,85.483,3.22580437]
[1773244604552,3.06452237,85.52,85.483,3.22580437]
[1773244604751,3.50124399,85.524,85.491,3.22580437]
[1773244605858,3.50124399,85.522,85.493,3.22580437]
[1773244607354,3.50124399,85.513,85.485,11.6979587]
[1773244607555,3.50124399,85.513,85.486,3.22580437]
[1773244607957,3.50124399,85.509,85.47,3.06452237]
[1773244608152,3.50124399,85.509,85.472,3.22580437]
[1773244608357,3.50124399,85.509,85.474,3.22580437]
[1773244608650,3.50124399,85.509,85.476,3.22580437]
[1773244609338,3.50124399,85.499,85.476,3.22580437]
[1773244609536,3.50124399,85.499,85.468,3.22580437]
[1773244610133,3.06452237,85.5,85.468,3.22580437]
[1773244610341,11.69481218,85.508,85.471,3.4825724]
[1773244610656,3.55354592,85.507,85.473,3.4825724]
[1773244610860,3.55354592,85.507,85.475,3.4825724]
[1773244611362,3.55354592,85.497,85.467,3.4825724]
[1773244611658,3.55354592,85.489,85.467,3.4825724]
[1773244611842,40.93663008,85.498,85.469,3.4825724]
[1773244612043,11.69618002,85.498,85.469,3.4825724]
[1773244612440,3.55354592,85.506,85.471,3.4825724]
[1773244612646,3.55354592,85.499,85.471,3.4825724]
[1773244613965,11.69618002,85.498,85.473,3.4825724]
[1773244616264,3.18,85.509,85.475,3.4825724]
[1773244616564,11.69399162,85.514,85.481,3.4825724]
[1773244616967,3.55354592,85.513,85.481,3.4825724]
[1773244617961,3.06452237,85.51,85.483,3.4825724]
[1773244618765,6.61806829,85.51,85.483,3.4825724]
[1773244618962,3.55354592,85.509,85.483,3.4825724]
[1773244619349,3.55354592,85.489,85.45,3.4825724]
[1773244619545,3.55354592,85.489,85.451,4.35095214]
[1773244620867,6.62039356,85.48,85.451,3.4825724]
[1773244621162,6.62039356,85.48,85.453,3.4825724]
[1773244621163,3.55354592,85.48,85.453,3.4825724]
[1773244621369,3.18,85.504,85.47,3.06684764]
[1773244621553,3.18,85.504,85.481,3.4825724]
[1773244622069,3.55354592,85.502,85.472,3.4825724]
[1773244622469,3.55354592,85.502,85.472,4.35049026]
[1773244623452,3.55354592,85.5,85.472,3.4825724]
[1773244623653,3.55354592,85.5,85.473,3.4825724]
[1773244624049,3.55354592,85.499,85.468,11.70025025]
[1773244624565,3.55354592,85.499,85.469,3.4825724]
[1773244624871,3.18,85.518,85.471,3.4825724]
[1773244624872,11.69501248,85.507,85.471,3.4825724]
[1773244625572,3.55354592,85.506,85.473,3.4825724]
[1773244625865,3.18,85.518,85.481,3.4825724]
[1773244625866,11.69416109,85.513,85.481,3.4825724]
[1773244626071,3.55354592,85.512,85.481,3.4825724]
[1773244626450,11.69416109,85.513,85.481,3.4825724]
[1773244626451,3.55354592,85.509,85.481,3.4825724]
[1773244626652,3.55354592,85.509,85.472,3.4825724]
[1773244626857,3.55354592,85.509,85.472,4.3503248]
[1773244627157,40.92948203,85.513,85.472,3.4825724]
[1773244627158,3.55354592,85.499,85.472,3.4825724]
[1773244627363,3.55354592,85.497,85.467,3.4825724]
[1773244627672,3.55354592,85.497,85.46,3.4825724]
[1773244627850,3.55354592,85.497,85.464,11.70083309]
[1773244628462,3.55354592,85.497,85.465,3.4825724]
[1773244629775,3.55354592,85.495,85.467,3.4825724]
[1773244630374,3.06684764,85.49,85.467,3.4825724]
[1773244630675,3.55354592,85.495,85.467,3.4825724]
[1773244632575,3.55354592,85.493,85.467,3.4825724]
[1773244633475,3.55354592,85.491,85.467,3.4825724]
[1773244633871,3.55354592,85.489,85.462,3.4825724]
[1773244634669,3.55354592,85.489,85.457,11.70176434]
[1773244635165,3.55354592,85.489,85.457,15.18433674]
[1773244635570,3.55354592,85.487,85.458,3.4825724]
[1773244636275,11.69642421,85.497,85.461,3.4825724]
[1773244636476,11.69642421,85.497,85.471,3.4825724]
[1773244637284,3.55354592,85.496,85.471,3.4825724]
[1773244637580,29.23782426,85.506,85.473,3.4825724]
[1773244637788,11.69508572,85.506,85.473,3.4825724]
[1773244638081,11.69508572,85.506,85.475,3.4825724]
[1773244638294,3.55354592,85.505,85.475,3.4825724]
[1773244638775,11.69508572,85.506,85.475,3.4825724]
[1773244638776,3.55354592,85.499,85.475,3.4825724]
[1773244638980,3.55354592,85.489,85.459,15.18409008]
[1773244639176,3.06684764,85.49,85.46,3.4825724]
[1773244639383,3.55354592,85.499,85.461,3.4825724]
[1773244639575,3.55354592,85.499,85.463,3.4825724]
[1773244640283,14.95879552,85.512,85.481,3.36691365]
[1773244640587,3.26453039,85.509,85.481,3.36691365]
[1773244642381,3.26453039,85.517,85.483,3.36691365]
[1773244642582,3.26453039,85.515,85.483,3.36691365]
[1773244642816,3.06684764,85.51,85.483,3.36691365]
[1773244643173,3.26453039,85.509,85.483,3.36691365]
[1773244644392,29.23429533,85.516,85.485,3.36691365]
[1773244644590,11.69385487,85.515,85.485,3.36691365]
[1773244645301,14.95797504,85.518,85.485,3.36691365]
[1773244645796,3.26453039,85.517,85.485,3.36691365]
[1773244646379,11.69344465,85.518,85.485,3.36691365]
[1773244646698,11.69344465,85.518,85.487,3.36691365]
[1773244646895,3.26453039,85.539,85.501,3.36691365]
[1773244647403,3.06684764,85.53,85.501,3.36691365]
[1773244648377,11.69057389,85.539,85.501,3.36691365]
[1773244648576,11.69057389,85.539,85.503,3.36691365]
[1773244649777,11.69057389,85.539,85.504,3.36691365]
[1773244650322,3.26453039,85.509,85.469,11.70007482]
[1773244650491,3.26453039,85.509,85.428,46.82277196]
[1773244650492,3.26453039,85.497,85.45,3.06684764]
[1773244650788,3.26453039,85.489,85.442,40.96346058]
[1773244650988,3.26453039,85.489,85.45,3.06684764]
[1773244651371,3.06684764,85.5,85.46,3.06684764]
[1773244651572,3.26453039,85.499,85.46,3.06684764]
[1773244651777,3.06684764,85.49,85.45,3.06684764]
[1773244652394,3.06684764,85.49,85.451,3.36691365]
[1773244652589,3.26453039,85.493,85.461,3.36691365]
[1773244652796,11.69604322,85.499,85.463,3.36691365]
[1773244652991,3.26453039,85.498,85.463,3.36691365]
[1773244653994,11.69604322,85.499,85.465,3.36691365]
[1773244654191,3.06684764,85.5,85.465,3.36691365]
[1773244654400,3.26453039,85.506,85.471,3.36691365]
[1773244654595,14.9596235,85.506,85.471,3.36691365]
[1773244655978,14.9596235,85.506,85.473,3.36691365]
[1773244656378,11.69509311,85.506,85.473,3.36691365]
[1773244656588,3.26453039,85.513,85.473,3.36691365]
[1773244656791,6.33137803,85.52,85.481,3.36691365]
[1773244657098,11.69330791,85.519,85.481,3.36691365]
[1773244657294,3.26453039,85.518,85.481,3.36691365]
[1773244657493,3.06684764,85.51,85.481,3.36691365]
[1773244657897,3.26453039,85.511,85.481,3.36691365]
[1773244658497,3.26453039,85.519,85.491,3.36691365]
[1773244658688,3.26453039,85.529,85.491,3.36691365]
[1773244659086,3.26453039,85.519,85.491,3.36691365]
[1773244659288,3.26453039,85.519,85.483,3.36691365]
[1773244660204,3.26453039,85.519,85.491,3.36918208]
[1773244660894,3.06684764,85.51,85.484,3.36918208]
[1773244661081,3.30097609,85.517,85.484,3.36918208]
[1773244661785,3.30097609,85.499,85.473,11.69960104]
[1773244663080,3.30097609,85.499,85.473,15.06878312]
[1773244663285,11.69618002,85.498,85.473,15.06878312]
[1773244663686,3.30097609,85.497,85.473,15.06878312]
[1773244664494,3.30097609,85.497,85.474,3.36918208]
[1773244665204,3.30097609,85.497,85.475,11.69932728]
[1773244665500,3.06684764,85.48,85.453,15.07152137]
[1773244665800,3.30097609,85.482,85.454,3.36918208]
[1773244665987,3.06684764,85.48,85.454,3.36918208]
[1773244666195,6.36782373,85.48,85.454,3.36918208]
[1773244666389,3.06684764,85.49,85.454,3.36918208]
[1773244666598,3.30097609,85.487,85.454,3.36918208]
[1773244667790,3.30097609,85.485,85.456,3.36918208]
[1773244668800,3.30097609,85.485,85.455,11.70206541]
[1773244669008,3.30097609,85.485,85.451,3.36918208]
[1773244669792,3.41412234,85.502,85.47,3.06684764]
[1773244669998,11.69576964,85.501,85.471,3.46105415]
[1773244670498,3.41412234,85.499,85.471,3.46105415]
[1773244670689,4.66164639,85.52,85.471,3.46105415]
[1773244670690,11.6953014,85.505,85.471,3.46105415]
[1773244670886,3.41412234,85.504,85.471,3.46105415]
[1773244671905,15.1096184,85.503,85.473,3.46105415]
[1773244672507,3.41412234,85.502,85.473,3.46105415]
[1773244672901,3.06684764,85.5,85.472,11.69973792]
[1773244673110,3.41412234,85.499,85.472,11.69973792]
[1773244673414,3.41412234,85.499,85.473,3.46105415]
[1773244674599,3.41412234,85.499,85.475,3.46105415]
[1773244675304,3.41412234,85.497,85.475,3.46105415]
[1773244675500,11.69569075,85.502,85.475,3.46105415]
[1773244675811,3.41412234,85.505,85.475,3.46105415]
[1773244676115,11.69535928,85.504,85.475,3.46105415]
[1773244676310,3.41412234,85.503,85.475,3.46105415]
[1773244676490,3.41412234,85.503,85.477,3.46105415]
[1773244677314,3.41412234,85.517,85.49,3.06684764]
[1773244677624,3.41412234,85.54,85.511,3.46105415]
[1773244678712,11.69060381,85.539,85.513,3.46105415]
[1773244678911,11.69060381,85.539,85.478,2.86]
[1773244678912,3.41412234,85.519,85.483,3.46105415]
[1773244679298,40.91703853,85.539,85.474,3.46105415]
[1773244679299,3.41412234,85.509,85.474,3.46105415]
[1773244679498,3.41412234,85.509,85.477,3.46105415]
[1773244680332,3.41412234,85.499,85.472,11.69970142]
[1773244680510,11.69618002,85.498,85.463,11.70097001]
[1773244680707,3.41412234,85.497,85.463,11.70097001]
[1773244681013,3.41412234,85.497,85.464,3.46105415]
[1773244683115,3.41412234,85.495,85.465,11.70069619]
[1773244683509,3.41412234,85.495,85.461,11.70124384]
[1773244683906,3.41412234,85.489,85.461,11.70124384]
[1773244684708,3.41412234,85.496,85.462,3.46105415]
[1773244684915,11.69574662,85.502,85.471,3.46105415]
[1773244685119,3.41412234,85.499,85.472,3.46105415]
[1773244685319,3.41412234,85.489,85.459,3.46105415]
[1773244685625,3.41412234,85.489,85.452,3.46105415]
[1773244687421,11.69754819,85.488,85.454,3.46105415]
[1773244687621,11.69754819,85.488,85.461,3.46105415]
[1773244687838,3.41412234,85.498,85.461,3.46105415]
[1773244688221,3.41412234,85.495,85.461,3.46105415]
[1773244688814,11.6959614,85.5,85.471,3.46105415]
[1773244689221,11.69540456,85.504,85.481,3.46105415]
[1773244689431,11.69540456,85.504,85.453,40.95818753]
[1773244689432,3.41412234,85.519,85.492,3.46105415]
[1773244690727,15.10756699,85.518,85.492,3.46105415]
[1773244691620,3.41412234,85.517,85.493,11.69686407]
[1773244691832,3.41412234,85.528,85.494,3.46105415]
[1773244692130,3.41412234,85.528,85.493,40.93902424]
[1773244692131,3.41412234,85.543,85.511,3.46105415]
[1773244692331,11.69016389,85.542,85.511,3.46105415]
[1773244692634,15.10428623,85.542,85.511,3.46105415]
[1773244693117,3.06593558,85.54,85.511,3.46105415]
[1773244693316,3.41412234,85.54,85.511,3.46105415]
[1773244694021,3.41412234,85.54,85.513,3.46105415]
[1773244694227,15.10461844,85.54,85.513,3.46105415]
[1773244694432,3.41412234,85.539,85.501,3.46105415]
[1773244694631,3.41412234,85.539,85.503,3.46105415]
[1773244697239,14.75643168,85.54,85.504,11.69535928]
[1773244697240,3.41412234,85.537,85.504,11.69535928]
[1773244697741,3.41412234,85.537,85.505,3.46105415]
[1773244699243,11.69098391,85.536,85.507,3.46105415]
[1773244699745,3.42055807,85.535,85.507,3.46105415]
[1773244699937,3.42055807,85.535,85.506,15.04862805]
[1773244700339,11.69125727,85.534,85.507,3.35354233]
[1773244700535,3.42055807,85.542,85.51,6.41947791]
[1773244701127,3.42055807,85.539,85.51,3.35354233]
[1773244701347,3.42055807,85.556,85.521,3.35354233]
[1773244702034,3.42055807,85.556,85.504,32.0983982]
[1773244702035,3.42055807,85.549,85.514,3.35354233]
[1773244702238,3.42055807,85.539,85.507,3.35354233]
[1773244702440,3.42055807,85.537,85.508,11.69481218]
[1773244702739,3.42055807,85.529,85.502,11.69553793]
[1773244702941,3.42055807,85.509,85.47,3.06593558]
[1773244703248,3.42055807,85.509,85.471,3.35354233]
[1773244704636,11.69481218,85.508,85.473,3.35354233]
[1773244705126,3.42055807,85.524,85.473,3.35354233]
[1773244705348,3.42055807,85.524,85.472,40.94908273]
[1773244705349,3.42055807,85.524,85.491,3.35354233]
[1773244707427,15.11325375,85.524,85.493,3.35354233]
[1773244707829,11.69276101,85.523,85.493,3.35354233]
[1773244708342,3.06593558,85.51,85.47,3.06593558]
[1773244708549,3.06593558,85.51,85.455,2.86]
[1773244708550,3.06593558,85.51,85.48,3.06593558]
[1773244708761,3.42055807,85.509,85.47,3.06593558]
[1773244708971,3.42055807,85.509,85.455,2.86]
[1773244708972,3.42055807,85.489,85.451,11.70261319]
[1773244709754,3.42055807,85.487,85.451,11.70261319]
[1773244711260,3.42055807,85.487,85.451,40.95914617]
[1773244711955,11.69782186,85.486,85.451,40.95914617]
[1773244712148,3.42055807,85.485,85.451,40.95914617]
[1773244713636,3.42055807,85.521,85.471,1.46775003]
[1773244713841,3.42055807,85.519,85.481,1.46775003]
[1773244714143,3.2,85.529,85.481,1.46775003]
[1773244714144,15.11400272,85.518,85.491,11.69713771]
[1773244714856,3.42055807,85.517,85.491,11.69713771]
[1773244715739,3.42055807,85.517,85.491,40.93998198]
[1773244716460,11.69262974,85.524,85.491,42.40321757]
[1773244716654,3.42055807,85.523,85.491,42.40321757]
[1773244717055,11.69184567,85.53,85.5,7.66712348]
[1773244717252,3.42055807,85.529,85.501,11.69576964]
[1773244718736,3.42055807,85.529,85.491,1.46176521]
[1773244718943,3.42055807,85.529,85.49,7.66712348]
[1773244719349,3.42055807,85.527,85.492,11.69700088]
[1773244719844,7.66712348,85.52,85.492,11.69700088]
[1773244720050,3.42055807,85.519,85.492,11.69700088]
[1773244721442,3.42055807,85.519,85.493,1.45466281]
[1773244721750,3.42055807,85.519,85.492,11.69700088]
[1773244722253,3.4226827,85.518,85.492,11.69700088]
[1773244724051,3.4226827,85.518,85.483,42.39574813]
[1773244724258,3.4226827,85.518,85.484,1.45193475]
[1773244725159,3.4226827,85.518,85.48,7.66712348]
[1773244725160,3.4226827,85.518,85.486,1.45059417]
[1773244725555,3.4226827,85.518,85.491,1.44926899]
[1773244725752,3.4226827,85.527,85.491,1.44926899]
[1773244726258,3.4226827,85.527,85.501,1.44926899]
[1773244726643,3.4226827,85.534,85.501,1.44926899]
[1773244726843,3.4226827,85.533,85.5,7.66712348]
[1773244727148,3.4226827,85.531,85.501,11.69576964]
[1773244727560,3.4226827,85.529,85.501,11.69576964]
[1773244729246,3.4226827,85.527,85.495,11.69659044]
[1773244729454,3.4226827,85.509,85.471,1.44411875]
[1773244729651,3.4226827,85.509,85.465,2.88]
[1773244729652,3.4226827,85.509,85.48,7.66712348]
[1773244729859,3.4226827,85.509,85.48,9.10999143]
[1773244730859,3.4226827,85.509,85.48,7.66712348]
[1773244731065,3.4226827,85.509,85.47,7.66712348]
[1773244731763,3.32665394,85.507,85.471,11.69987481]
[1773244733351,3.32665394,85.505,85.471,11.69987481]
[1773244734267,11.69535928,85.504,85.471,11.69987481]
[1773244734482,3.32665394,85.503,85.48,4.50232998]
[1773244734660,3.32665394,85.513,85.481,1.43682617]
[1773244736467,3.32665394,85.511,85.482,11.69836924]
[1773244737256,3.32665394,85.511,85.482,13.13173435]
[1773244737570,3.32665394,85.511,85.483,1.43336511]
[1773244739476,3.32665394,85.509,85.471,11.69987481]
[1773244742276,43.99638908,85.51,85.471,11.69987481]
[1773244742277,3.32665394,85.507,85.471,13.12880788]
[1773244742659,3.32665394,85.514,85.481,1.42785669]
[1773244743581,3.32665394,85.514,85.48,3.06481907]
[1773244744261,3.32665394,85.512,85.481,11.6985061]
[1773244746874,3.32665394,85.51,85.481,11.6985061]
[1773244747079,3.32665394,85.51,85.481,40.94477135]
[1773244747595,3.32665394,85.51,85.481,11.6985061]
[1773244748377,3.32665394,85.51,85.472,1.42265743]
[1773244748378,3.32665394,85.509,85.472,11.69973792]
[1773244748974,3.32665394,85.499,85.472,11.69973792]
[1773244749459,3.32665394,85.499,85.472,13.12039829]
[1773244751988,3.32665394,85.499,85.472,13.11844684]
[1773244752184,3.32665394,85.499,85.473,1.41870892]
[1773244752590,3.32665394,85.497,85.472,11.69973792]
[1773244753894,3.32665394,85.489,85.454,29.25543025]
[1773244754102,3.32665394,85.489,85.454,30.6722323]
[1773244754270,3.32665394,85.489,85.461,1.415865]
[1773244755784,3.32665394,85.487,85.462,11.70110692]
[1773244756084,3.32665394,85.479,85.441,1.41493872]
[1773244756268,3.32665394,85.479,85.44,3.06481907]
[1773244756468,3.32665394,85.479,85.44,44.02923854]
[1773244756876,3.32665394,85.479,85.441,1.41402308]
[1773244757590,3.32665394,85.479,85.451,1.41311796]
[1773244757972,3.32665394,85.477,85.452,11.70247624]
[1773244759272,3.32665394,85.469,85.416,1.41133878]
[1773244759474,3.32665394,85.449,85.416,1.41133878]
[1773244759885,3.25517964,85.447,85.418,3.42848709]
[1773244760093,11.70246778,85.453,85.421,3.42848709]
[1773244760316,3.25517964,85.452,85.421,3.42848709]
[1773244761882,6.31999871,85.45,85.421,3.42848709]
[1773244762297,14.95806674,85.449,85.423,3.42848709]
[1773244762603,3.25517964,85.448,85.423,3.42848709]
[1773244764280,3.25517964,85.448,85.415,3.42848709]
[1773244764589,3.25517964,85.429,85.392,3.42848709]
[1773244764787,3.25517964,85.419,85.392,3.42848709]
[1773244765082,3.25517964,85.439,85.401,3.42848709]
[1773244766204,3.25517964,85.429,85.401,3.42848709]
[1773244766399,3.25517964,85.427,85.402,11.70932765]
[1773244766700,3.25517964,85.438,85.403,3.42848709]
[1773244767494,3.25517964,85.429,85.403,3.42848709]
[1773244767685,3.25517964,85.437,85.403,3.42848709]
[1773244768492,3.25517964,85.429,85.405,3.42848709]
[1773244770287,3.25517964,85.429,85.397,3.42848709]
[1773244770487,3.25517964,85.427,85.391,15.13932312]
[1773244770894,3.25517964,85.427,85.392,3.42848709]
[1773244771099,11.70576391,85.428,85.401,3.42848709]
[1773244772210,3.25517964,85.434,85.41,3.06481907]
[1773244772506,3.25517964,85.43,85.408,3.42848709]
[1773244772804,3.25517964,85.43,85.407,11.70862206]
[1773244773591,3.25517964,85.43,85.403,11.70919054]
[1773244774309,3.25517964,85.428,85.403,11.70919054]
[1773244774810,3.25517964,85.428,85.403,15.13767763]